bitfinex/quotes_SOLUSD_20220210
["timestamp","ask_amount","ask_price","bid_price","bid_amount"]
[1644529912462,1.29604029,108.34,108.26,74.48929228]
[1644529913766,19.76634029,108.34,108.26,74.48929228]
[1644529913965,1.29604029,108.33,108.26,74.48929228]
[1644529914365,1.29604029,108.33,108.26,37.77]
[1644529914567,3.52726183,108.33,108.26,0.024]
[1644529914764,3.52726183,108.33,108.25,36.7407]
[1644529914765,1.29604029,108.32,108.25,13.8579]
[1644529915267,17.38376183,108.32,108.24,0.024]
[1644529915565,5.91304029,108.31,108.24,53.61670517]
[1644529915867,5.91304029,108.31,108.2,50.34266757]
[1644529915868,2.23122154,108.3,108.22,0.024]
[1644529916065,4.618,108.29,108.22,0.024]
[1644529916265,13.8656,108.27,108.2,0.024]
[1644529916465,37.0303,108.27,108.19,0.024]
[1644529916668,2.23122154,108.26,108.19,0.024]
[1644529916865,2.23122154,108.26,108.19,42.01525628]
[1644529917065,2.23122154,108.26,108.19,55.90445628]
[1644529917265,23.1647,108.27,108.19,13.8892]
[1644529917465,16.09602154,108.26,108.19,0.024]
[1644529917665,16.09602154,108.26,108.18,0.25723562]
[1644529917666,4.62,108.25,108.18,0.25723562]
[1644529918066,6.85122154,108.25,108.18,0.25723562]
[1644529918370,16.09792154,108.25,108.18,0.25723562]
[1644529918567,25.26492154,108.25,108.18,0.25723562]
[1644529919068,4.62,108.24,108.18,0.25723562]
[1644529919565,6.85122154,108.24,108.18,0.25723562]
[1644529919766,20.72042154,108.24,108.18,0.25723562]
[1644529919966,13.29,108.23,108.18,0.25723562]
[1644529920166,4.62,108.22,108.18,0.25723562]
[1644529920369,2.23122154,108.22,108.18,0.25723562]
[1644529920567,2.23122154,108.21,108.18,0.25723562]
[1644529920767,3.03219997,108.2,108.18,0.25723562]
[1644529921471,88.25723562,108.18,108.07,11.86370162]
[1644529921671,0.31379499,108.13,108.07,11.36370162]
[1644529921868,0.31379499,108.13,108.0,1.2]
[1644529921869,24.45579499,108.13,108.0,1.2]
[1644529922071,42.18985572,108.13,108.0,15.0848]
[1644529922272,31.02406073,108.13,108.0,15.0848]
[1644529922468,155.1498,108.16,108.01,35.92071334]
[1644529922669,155.1498,108.16,108.01,83.43391334]
[1644529922870,82.6768,108.16,108.01,83.43391334]
[1644529923072,16.11342154,108.15,108.01,83.43391334]
[1644529923269,13.29,108.14,108.01,49.80441334]
[1644529923572,4.626,108.13,108.01,35.92071334]
[1644529923770,13.29,108.12,108.01,35.92071334]
[1644529923969,15.52122154,108.12,108.01,35.92071334]
[1644529924170,31.5699014,108.11,108.0,1.2]
[1644529924371,0.31269259,108.06,107.98,0.49855306]
[1644529924572,13.29,108.05,107.98,0.49855306]
[1644529924771,28.42898801,108.05,107.98,0.49855306]
[1644529924971,44.46849386,108.05,107.98,0.49855306]
[1644529925173,2.23122154,108.04,107.98,0.49855306]
[1644529925376,138.0,108.02,107.89,0.00010965]
[1644529925573,166.15,107.96,107.83,9.6275023]
[1644529925777,166.15,107.96,107.86,0.024]
[1644529925778,166.15,107.94,107.86,0.024]
[1644529925974,179.44,107.93,107.86,0.024]
[1644529926276,31.06283918,107.92,107.86,0.024]
[1644529926473,166.15,107.89,107.84,0.00781076]
[1644529926672,13.29,107.88,107.84,0.00781076]
[1644529926875,4.635,107.87,107.84,0.00781076]
[1644529927075,0.52077625,107.85,107.73,45.82604912]
[1644529927375,13.29,107.84,107.73,45.82604912]
[1644529927573,188.55783918,107.87,107.74,4.638]
[1644529927574,13.29,107.83,107.74,4.638]
[1644529928173,15.52122154,107.83,107.75,47.50081245]
[1644529928400,13.29,107.83,107.75,47.50081245]
[1644529928780,13.29,107.85,107.76,4.638]
[1644529928975,13.29,107.85,107.75,47.50081245]
[1644529929379,11.15,107.87,107.75,47.50081245]
[1644529929778,11.15,107.87,107.76,4.636]
[1644529929977,11.15,107.9,107.76,6.49873755]
[1644529930175,11.15,107.91,107.77,1.86273755]
[1644529930375,11.15,107.91,107.78,4.636]
[1644529930576,15.786,107.93,107.78,47.92597748]
[1644529930778,11.15,107.94,107.78,65.32597748]
[1644529930976,33.843,107.95,107.78,73.95297748]
[1644529931175,11.15,107.95,107.79,1.86273755]
[1644529931377,11.15,107.95,107.8,11.174]
[1644529931878,11.15,107.95,107.81,0.024]
[1644529932075,11.15,107.95,107.81,37.04388848]
[1644529932277,11.15,107.95,107.82,0.024]
[1644529932476,4.635,107.98,107.82,13.03673755]
[1644529932677,11.15,107.99,107.83,1.88673755]
[1644529932877,11.15,107.99,107.84,11.174]
[1644529933076,11.15,107.99,107.85,0.024]
[1644529933281,11.15,107.99,107.85,46.4402167]
[1644529933480,13.38122154,107.99,107.86,0.024]
[1644529934682,13.38122154,107.99,107.88,34.94024622]
[1644529934881,80.0,107.98,107.89,0.024]
[1644529935083,2.23122154,107.99,107.89,0.024]
[1644529935381,6.86322154,108.01,107.89,8.634]
[1644529935582,4.631,108.04,107.9,17.66773755]
[1644529935783,2.23122154,108.04,107.9,23.91773755]
[1644529936006,4.63,108.03,107.9,23.91773755]
[1644529936208,18.83660925,108.03,107.91,43.44549569]
[1644529936410,18.83660925,108.03,107.92,0.024]
[1644529936911,2.23122154,108.03,107.92,0.024]
[1644529937109,2.23122154,108.05,107.92,1.88673755]
[1644529937308,2.23122154,108.05,107.93,0.024]
[1644529937908,2.23122154,108.05,107.93,42.82970621]
[1644529938309,2.96706971,108.05,107.93,43.07970621]
[1644529938512,6.86122154,108.05,107.93,42.82970621]
[1644529938712,4.63,108.05,107.93,75.98254376]
[1644529938912,24.4982,108.07,107.94,4.63]
[1644529939110,15.778,108.1,107.95,11.174]
[1644529939311,200.3772,108.11,107.96,4.59511659]
[1644529939513,200.3772,108.11,107.97,56.55140998]
[1644529939714,200.3772,108.11,107.99,39.14142003]
[1644529939911,11.15,108.11,108.01,42.63345105]
[1644529940512,2.23122154,108.12,108.01,42.63345105]
[1644529940713,112.3618,108.13,108.01,42.88345105]
[1644529940912,107.7348,108.13,108.01,42.88345105]
[1644529941912,4.626,108.12,108.01,42.88345105]
[1644529942913,4.626,108.12,108.01,54.03345105]
[1644529943517,24.9676,108.13,108.02,4.626]
[1644529943715,1.29604029,108.15,108.02,24.599]
[1644529943914,12.44604029,108.16,108.03,1.86273755]
[1644529944117,1.29604029,108.15,108.04,15.775]
[1644529944315,78.4111,108.17,108.05,42.42525055]
[1644529944316,1.29604029,108.16,108.05,42.42525055]
[1644529944615,4.625,108.15,108.06,4.625]
[1644529944815,4.625,108.15,108.06,23.88773755]
[1644529945016,1.29604029,108.16,108.07,1.86273755]
[1644529945216,1.29604029,108.16,108.07,11.15]
[1644529945416,1.29604029,108.15,108.07,17.15]
[1644529945616,1.29604029,108.15,108.08,44.17666103]
[1644529945816,1.29604029,108.17,108.08,44.17666103]
[1644529946016,1.29604029,108.16,108.08,52.64066103]
[1644529946415,1.29604029,108.16,108.08,58.39066103]
[1644529946618,1.29604029,108.16,108.08,52.39066103]
[1644529946817,1.29604029,108.15,108.08,52.39066103]
[1644529947017,1.29604029,108.15,108.08,44.17666103]
[1644529948117,1.29604029,108.14,108.08,44.17666103]
[1644529949524,1.29604029,108.14,108.02,18.503]
[1644529949719,1.29604029,108.12,108.03,11.15]
[1644529949918,4.626,108.13,108.01,6.0]
[1644529949919,1.29604029,108.11,108.01,6.0]
[1644529950121,1.29604029,108.11,108.01,4.627]
[1644529950318,1.29604029,108.11,108.01,10.627]
[1644529950521,1.29604029,108.11,108.02,11.15]
[1644529950719,1.29604029,108.12,108.03,4.626]
[1644529950921,1.29604029,108.12,108.04,44.60046458]
[1644529951521,1.29604029,108.11,108.04,44.60046458]
[1644529951724,1.29604029,108.12,108.04,50.85046458]
[1644529951923,1.29604029,108.13,108.06,39.48054128]
[1644529952423,1.29604029,108.13,108.06,39.73054128]
[1644529953525,1.29604029,108.14,108.06,39.73054128]
[1644529954328,1.29604029,108.14,108.06,39.69742831]
[1644529954724,6.82737663,108.17,108.08,138.0]
[1644529955026,114.50879487,108.19,108.09,15.774]
[1644529955224,114.50879487,108.19,108.1,36.61030764]
[1644529955424,111.9,108.19,108.1,36.63430764]
[1644529955625,111.9,108.19,108.1,18.38514184]
[1644529956424,111.9,108.19,108.1,29.05814184]
[1644529956626,111.9,108.19,108.11,11.15]
[1644529956827,2.60879487,108.22,108.11,11.4]
[1644529957026,82.34459487,108.23,108.11,11.4]
[1644529957227,6.55817239,108.22,108.12,43.18979373]
[1644529957526,2.60879487,108.22,108.12,43.18979373]
[1644529957727,2.60879487,108.22,108.12,43.43979373]
[1644529958328,86.96659487,108.23,108.12,43.43979373]
[1644529958529,2.60879487,108.25,108.13,15.772]
[1644529958726,2.60879487,108.25,108.13,19.673]
[1644529958929,2.60879487,108.25,108.13,19.923]
[1644529959330,2.60879487,108.25,108.14,46.80259625]
[1644529959528,2.60879487,108.25,108.16,41.77424111]
[1644529959728,2.60879487,108.25,108.16,51.95524111]
[1644529959927,2.60879487,108.25,108.16,52.20524111]
[1644529960229,2.60879487,108.25,108.16,63.35524111]
[1644529960628,72.3273,108.27,108.16,63.35524111]
[1644529960629,2.60879487,108.24,108.16,63.35524111]
[1644529960929,2.60879487,108.25,108.16,63.35524111]
[1644529961431,2.60879487,108.25,108.16,77.21894111]
[1644529964228,2.60879487,108.24,108.16,77.21894111]
[1644529965330,2.60879487,108.23,108.16,77.21894111]
[1644529966132,2.60879487,108.24,108.16,77.21894111]
[1644529967235,2.60879487,108.23,108.16,77.21894111]
[1644529967833,2.60879487,108.22,108.16,65.81894111]
[1644529968033,2.60879487,108.22,108.16,55.63794111]
[1644529968235,2.60879487,108.23,108.16,55.63794111]
[1644529968633,2.60879487,108.23,108.16,55.88794111]
[1644529968836,2.60879487,108.23,108.16,55.63794111]
[1644529969035,2.60879487,108.23,108.16,41.77424111]
[1644529969656,2.60879487,108.23,108.16,47.77424111]
[1644529969837,2.60879487,108.22,108.16,41.77424111]
[1644529971837,2.60879487,108.22,108.16,42.02424111]
[1644529972037,2.60879487,108.23,108.16,42.02424111]
[1644529973337,2.60879487,108.22,108.16,42.02424111]
[1644529973538,2.60879487,108.22,108.16,41.77424111]
[1644529974537,2.60879487,108.21,108.16,41.77424111]
[1644529977542,2.60879487,108.2,108.13,4.621]
[1644529977743,43.54847613,108.21,108.11,25.0219]
[1644529977939,43.54847613,108.21,108.11,31.0219]
[1644529978143,43.54847613,108.21,108.11,25.0219]
[1644529978442,2.60879487,108.21,108.11,25.0219]
[1644529978643,2.60879487,108.21,108.12,18.493]
[1644529979141,2.60879487,108.2,108.12,18.493]
[1644529979341,2.60879487,108.2,108.13,37.2099956]
[1644529980643,2.60879487,108.2,108.13,37.4599956]
[1644529982143,2.60879487,108.19,108.13,37.4599956]
[1644529982648,2.60879487,108.19,108.13,51.3301956]
[1644529983243,2.60879487,108.19,108.13,37.2099956]
[1644529983443,2.60879487,108.18,108.13,37.2099956]
[1644529984249,2.60879487,108.19,108.13,37.4599956]
[1644529984452,2.60879487,108.2,108.13,37.4599956]
[1644529985475,2.60879487,108.2,108.13,51.3304956]
[1644529986377,2.60879487,108.2,108.13,59.9554956]
[1644529987276,2.60879487,108.21,108.13,59.9554956]
[1644529989476,2.60879487,108.21,108.13,65.9554956]
[1644529989676,2.60879487,108.21,108.13,59.9554956]
[1644529989879,2.60879487,108.21,108.13,57.3304956]
[1644529990278,2.60879487,108.21,108.13,51.3304956]
[1644529992784,2.60879487,108.21,108.13,62.4804956]
[1644529992984,2.60879487,108.21,108.15,13.8679]
[1644529993182,27.04619487,108.22,108.15,13.8679]
[1644529993381,27.04619487,108.22,108.16,46.19911053]
[1644529993582,120.41707678,108.27,108.18,72.0]
[1644529993782,24.214,108.28,108.18,72.25]
[1644529993982,24.214,108.28,108.18,83.4]
[1644529994189,24.214,108.28,108.18,72.25]
[1644529994385,24.214,108.28,108.19,47.26293276]
[1644529994583,24.214,108.28,108.19,54.49393276]
[1644529994783,24.214,108.28,108.19,81.93683276]
[1644529994987,24.214,108.28,108.19,86.55583276]
[1644529995185,3.89607678,108.3,108.19,86.55583276]
[1644529995586,343.22852525,108.31,108.19,92.55583276]
[1644529996189,120.41507678,108.32,108.19,92.55583276]
[1644529996389,115.79607678,108.32,108.19,92.55583276]
[1644529996990,111.9,108.32,108.19,92.55583276]
[1644529999094,160.4993,108.32,108.19,92.55583276]
[1644529999398,61.92304387,108.31,108.19,79.07483276]
[1644529999597,41.65476254,108.29,108.19,74.45583276]
[1644530000406,42.51183376,108.27,108.19,61.12583276]
[1644530000701,56.37643376,108.27,108.19,61.12583276]
[1644530001102,4.619,108.26,108.19,61.12583276]
[1644530002703,42.51183376,108.27,108.19,61.12583276]
[1644530003904,4.619,108.26,108.19,61.12583276]
[1644530004105,41.65476254,108.25,108.19,61.12583276]
[1644530004306,48.70976254,108.25,108.17,13.8662]
[1644530004507,4.62,108.24,108.17,13.8662]
[1644530005306,4.62,108.24,108.18,46.71928653]
[1644530006709,42.51183376,108.23,108.18,46.71928653]
[1644530007907,42.51183376,108.23,108.15,13.8688]
[1644530008509,50.74983376,108.23,108.15,13.8688]
[1644530008708,50.74983376,108.23,108.14,13.8711]
[1644530008709,55.37083376,108.23,108.14,13.8711]
[1644530008909,64.61933376,108.23,108.15,41.11351572]
[1644530009110,69.24033376,108.23,108.15,41.11351572]
[1644530009508,69.24033376,108.23,108.11,46.237]
[1644530009708,174.5915553,108.23,108.11,13.8741]
[1644530009909,23.68351514,108.22,108.11,13.8741]
[1644530010109,29.595,108.21,108.11,13.8741]
[1644530010310,24.973,108.21,108.11,13.8741]
[1644530010512,64.59172485,108.2,108.12,47.66131242]
[1644530010713,28.30551514,108.2,108.12,47.66131242]
[1644530010933,4.622,108.2,108.12,61.53501242]
[1644530011335,4.622,108.21,108.12,61.53501242]
[1644530011735,37.58402253,108.2,108.12,61.53501242]
[1644530012034,13.8741,108.2,108.12,61.53501242]
[1644530013536,39.37407486,108.19,108.12,61.53501242]
[1644530013737,53.24867486,108.19,108.12,47.66131242]
[1644530014139,13.8746,108.19,108.12,47.66131242]
[1644530014337,35.13425718,108.21,108.12,47.66131242]
[1644530014536,30.51225718,108.21,108.12,47.66131242]
[1644530014940,54.24578192,108.21,108.12,47.66131242]
[1644530015138,45.99484051,108.2,108.12,47.66131242]
[1644530015341,50.61684051,108.2,108.12,47.66131242]
[1644530015737,37.60812474,108.19,108.12,47.66131242]
[1644530016137,35.49619119,108.18,108.12,47.66131242]
[1644530016939,58.68749119,108.18,108.09,13.8777]
[1644530017140,58.68749119,108.18,108.07,46.2789]
[1644530017141,4.623,108.17,108.07,0.024]
[1644530017341,11.1,108.16,108.06,0.024]
[1644530017538,4.624,108.15,108.06,0.024]
[1644530017738,23.734,108.14,108.03,0.024]
[1644530017938,23.734,108.14,108.03,47.17512971]
[1644530017939,40.76500376,108.13,108.03,47.17512971]
[1644530018139,23.734,108.14,108.04,0.024]
[1644530018342,37.6156,108.14,108.06,13.8816]
[1644530018542,37.6156,108.14,108.04,0.024]
[1644530018742,44.8516,108.14,108.04,0.024]
[1644530018938,44.8516,108.14,108.04,1.87928203]
[1644530019138,40.29205679,108.13,108.05,45.02727351]
[1644530019740,23.734,108.14,108.05,45.02727351]
[1644530019941,23.734,108.14,108.05,58.91007351]
[1644530020642,23.734,108.14,108.05,59.16007351]
[1644530020840,60.55288098,108.14,108.05,59.16007351]
[1644530021741,74.43418098,108.14,108.05,59.16007351]
[1644530023647,37.6153,108.14,108.05,59.16007351]
[1644530024744,76.6021291,108.14,108.05,59.16007351]
[1644530025348,76.6021291,108.14,108.05,65.16007351]
[1644530025847,76.6021291,108.14,108.05,59.16007351]
[1644530030157,76.6021291,108.14,108.05,14.1328]
[1644530031055,76.6021291,108.14,108.05,57.54066081]
[1644530039689,87.7021291,108.14,108.05,57.54066081]
[1644530039888,87.7021291,108.14,108.04,0.024]
[1644530040089,92.02,108.12,108.03,0.024]
[1644530040288,28.8752,108.13,107.97,47.1717]
[1644530040289,13.8915,108.1,108.02,0.024]
[1644530040490,11.1,108.09,108.03,0.024]
[1644530040692,15.728,108.09,107.98,0.024]
[1644530040889,35.98433879,108.08,107.98,35.81730177]
[1644530041088,4.628,108.07,107.99,0.024]
[1644530041291,41.82162819,108.06,107.99,0.024]
[1644530041491,41.82162819,108.06,107.98,49.68570177]
[1644530042689,13.892,108.05,107.98,49.68570177]
[1644530047396,13.8905,108.06,107.98,49.68570177]
[1644530047596,46.6882,108.07,107.98,49.70970177]
[1644530047795,46.6882,108.07,107.98,49.93570177]
[1644530047997,4.628,108.11,107.98,49.93570177]
[1644530047998,25.1855,108.11,107.98,49.95970177]
[1644530048202,411.2644344,108.12,108.02,13.8839]
[1644530048400,411.2644344,108.12,108.02,22.7909]
[1644530049000,411.2644344,108.12,108.02,22.5409]
[1644530049200,48.66166012,108.11,108.03,45.84514903]
[1644530049400,53.28766012,108.11,108.04,13.8849]
[1644530049598,18.511,108.11,108.04,13.8849]
[1644530050700,13.885,108.11,108.05,47.95044177]
[1644530050899,13.885,108.11,108.05,61.83524177]
[1644530052206,387.8391344,108.12,108.05,61.83524177]
[1644530052207,401.7221344,108.12,108.05,61.83524177]
[1644530052402,387.8391344,108.12,108.05,70.73224177]
[1644530053203,36.42381623,108.12,108.05,70.73224177]
[1644530053403,36.42381623,108.12,108.05,61.83524177]
[1644530053702,4.625,108.14,108.05,61.83524177]
[1644530054704,13.883,108.12,108.05,61.83524177]
[1644530056808,60.18005755,108.12,108.05,61.83524177]
[1644530057012,60.18005755,108.12,108.05,47.95044177]
[1644530057211,4.625,108.11,108.05,47.95044177]
[1644530057407,60.18005755,108.12,108.05,47.95044177]
[1644530057408,13.8889,108.1,108.05,47.95044177]
[1644530058009,13.8889,108.1,108.0,0.024]
[1644530058211,71.1642,108.1,108.01,13.8899]
[1644530058411,13.8899,108.07,108.01,13.9139]
[1644530058609,13.8899,108.07,108.01,13.8899]
[1644530059017,13.8899,108.07,108.02,35.35387497]
[1644530059418,36.45429522,108.06,108.0,13.8912]
[1644530059620,50.34579522,108.06,108.0,13.8912]
[1644530060018,50.34579522,108.06,107.99,0.024]
[1644530060218,50.34579522,108.06,107.96,46.3318]
[1644530060421,50.34579522,108.06,107.96,0.024]
[1644530060620,24.0837,108.05,107.97,37.06194629]
[1644530060818,13.8954,108.03,107.97,50.98084629]
[1644530061019,13.8954,108.03,107.97,50.95684629]
[1644530062322,13.8954,108.03,107.97,37.06194629]
[1644530063021,13.8954,108.03,107.95,0.024]
[1644530063024,22.8264,108.03,107.95,0.024]
[1644530063224,150.3352,108.03,107.94,0.024]
[1644530063441,29.2419,108.02,107.91,13.9011]
[1644530063642,13.9011,107.98,107.91,13.9011]
[1644530063842,9.5,107.98,107.92,42.20417525]
[1644530064042,24.0861,108.0,107.92,42.18017525]
[1644530064842,35.39622355,107.99,107.92,56.08047525]
[1644530065443,35.39622355,107.99,107.92,42.18017525]
[1644530065642,48.74622355,107.99,107.92,42.18017525]
[1644530065842,42.9846689,107.97,107.92,42.18017525]
[1644530066247,4.631,107.98,107.92,42.18017525]
[1644530066845,13.9032,107.97,107.92,42.18017525]
[1644530067648,4.631,107.98,107.92,42.18017525]
[1644530067845,24.0861,108.0,107.92,42.18017525]
[1644530068447,71.02796255,108.0,107.92,42.18017525]
[1644530068749,13.9012,107.99,107.92,56.08067525]
[1644530069149,37.22473375,107.98,107.92,56.08067525]
[1644530069448,13.9012,107.99,107.92,56.08067525]
[1644530070248,13.9012,107.99,107.92,42.18017525]
[1644530070450,53.31401028,107.99,107.92,42.18017525]
[1644530071047,13.9012,107.99,107.92,42.18017525]
[1644530071253,27.2491,108.01,107.92,58.18535728]
[1644530071450,24.6109,108.02,107.92,65.88935728]
[1644530071648,24.6109,108.02,107.92,85.26335728]
[1644530071848,24.6109,108.02,107.92,85.01335728]
[1644530072050,74.44542046,108.02,107.92,85.26335728]
[1644530072252,69.81542046,108.02,107.92,85.26335728]
[1644530072450,69.81542046,108.02,107.92,79.26335728]
[1644530072649,24.6109,108.02,107.92,79.26335728]
[1644530073049,24.6109,108.02,107.92,65.91335728]
[1644530073251,24.1327,108.03,107.92,65.91335728]
[1644530073450,24.1327,108.03,107.96,13.894]
[1644530073652,24.1327,108.03,107.97,40.06110816]
[1644530074361,24.1327,108.03,107.95,0.024]
[1644530074555,4.63,108.02,107.88,14.0999]
[1644530074758,138.0,108.01,107.91,0.024]
[1644530074962,184.861,108.0,107.91,0.024]
[1644530075158,167.19460082,107.99,107.84,46.3464]
[1644530075457,194.08267503,107.97,107.84,0.024]
[1644530075656,167.19462076,107.95,107.85,0.024]
[1644530075859,13.35,107.94,107.85,0.024]
[1644530076061,4.634,107.93,107.83,0.05003495]
[1644530076259,181.35325304,107.93,107.83,0.05003495]
[1644530076458,0.30685406,107.91,107.83,0.05003495]
[1644530076662,0.30685406,107.91,107.83,0.02603495]
[1644530076663,27.20267503,107.89,107.83,0.02603495]
[1644530076861,17.985,107.88,107.83,0.00603495]
[1644530077059,28.798,107.88,107.83,0.00603495]
[1644530077364,166.88,107.87,107.8,0.004]
[1644530077562,166.88,107.87,107.79,5.465e-05]
[1644530077563,166.88,107.85,107.79,5.465e-05]
[1644530077761,13.35,107.84,107.79,5.465e-05]
[1644530078160,4.636,107.83,107.79,5.465e-05]
[1644530078360,13.35,107.84,107.79,5.465e-05]
[1644530078559,78.3213,107.87,107.79,5.465e-05]
[1644530078760,13.35,107.86,107.8,49.0457007]
[1644530079359,13.35,107.86,107.79,5.465e-05]
[1644530079360,73.6853,107.87,107.79,5.465e-05]
[1644530079567,78.3213,107.87,107.79,5.465e-05]
[1644530079768,89.26652154,107.87,107.79,5.465e-05]
[1644530079970,4.636,107.86,107.79,5.465e-05]
[1644530080170,13.35,107.85,107.79,5.465e-05]
[1644530080367,4.636,107.84,107.79,5.465e-05]
[1644530080570,13.35,107.83,107.79,5.465e-05]
[1644530080767,13.35,107.83,107.63,13.35]
[1644530080768,0.31921108,107.81,107.63,13.35]
[1644530080967,0.32379793,107.77,107.63,12.85]
[1644530081167,24.4244,107.77,107.62,13.64066757]
[1644530081366,24.4244,107.77,107.61,13.35]
[1644530081367,24.4244,107.77,107.63,13.64066757]
[1644530081568,4.642,107.76,107.63,15.47681282]
[1644530081766,4.642,107.76,107.64,35.10632576]
[1644530081767,1.34001901,107.76,107.64,35.10632576]
[1644530081969,47.7625,107.8,107.64,34.60632576]
[1644530082189,4.642,107.79,107.65,30.03317606]
[1644530082369,61.1125,107.8,107.66,13.35]
[1644530082569,13.35,107.8,107.66,43.38317606]
[1644530082772,6.87222154,107.82,107.67,16.00084182]
[1644530082773,4.641,107.82,107.67,16.00084182]
[1644530082973,13.35,107.84,107.68,13.35]
[1644530083171,87.0353,107.87,107.68,58.07275229]
[1644530083376,73.6853,107.87,107.7,166.88]
[1644530083574,4.638,107.87,107.71,180.23]
[1644530083772,4.639,107.88,107.72,13.35]
[1644530083971,2.23122154,107.86,107.72,72.82997381]
[1644530084174,1.74768526,107.85,107.72,1.83614525]
[1644530084374,4.638,107.84,107.68,69.5306]
[1644530084575,18.01922154,107.84,107.65,79.1151]
[1644530084776,49.02382154,107.83,107.66,11.15]
[1644530084974,4.64,107.82,107.66,11.15]
[1644530085182,32.1218835,107.82,107.67,45.72475431]
[1644530085381,32.1218835,107.82,107.68,11.15]
[1644530085579,2.23122154,107.82,107.69,39.84515846]
[1644530085779,6.87122154,107.82,107.69,40.09515846]
[1644530086179,4.64,107.82,107.69,51.24515846]
[1644530086382,46.7926,107.83,107.69,51.24515846]
[1644530086781,4.639,107.86,107.69,82.22887961]
[1644530086984,6.87022154,107.88,107.7,139.41]
[1644530087182,16.19334429,107.97,107.7,139.41]
[1644530087183,2.23122154,107.9,107.72,139.41]
[1644530087386,2.23122154,107.9,107.73,11.15]
[1644530087582,2.23122154,107.88,107.73,11.15]
[1644530087781,36.87561027,107.87,107.74,40.13929511]
[1644530087984,41.51361027,107.87,107.74,40.13929511]
[1644530088281,2.23122154,107.86,107.74,40.38929511]
[1644530088481,18.01922154,107.88,107.74,51.53929511]
[1644530088681,4.638,107.86,107.74,51.53929511]
[1644530088882,4.638,107.88,107.74,51.53929511]
[1644530089082,24.9199,107.89,107.74,57.53929511]
[1644530089283,4.636,107.88,107.74,57.28929511]
[1644530089483,2.23122154,107.87,107.74,51.53929511]
[1644530089698,4.636,107.88,107.74,51.53929511]
[1644530090103,4.636,107.88,107.74,57.53929511]
[1644530090301,24.9199,107.89,107.74,57.53929511]
[1644530090504,24.9199,107.89,107.75,0.024]
[1644530090802,5.51717447,107.88,107.77,47.64151028]
[1644530091005,10.15317447,107.88,107.78,0.024]
[1644530091302,29.00271994,107.86,107.77,47.66551028]
[1644530091501,29.00271994,107.86,107.78,0.024]
[1644530091801,6.86722154,107.85,107.77,47.66551028]
[1644530092001,6.86722154,107.85,107.77,47.64151028]
[1644530092002,2.23122154,107.85,107.77,47.64151028]
[1644530092201,13.9229,107.86,107.77,47.64151028]
[1644530092405,4.636,107.85,107.77,47.66551028]
[1644530092602,4.636,107.85,107.77,47.64151028]
[1644530093008,42.93712154,107.89,107.77,47.64151028]
[1644530093204,27.15112154,107.89,107.78,11.15]
[1644530093405,27.15112154,107.89,107.78,11.174]
[1644530093605,27.15112154,107.89,107.79,0.024]
[1644530093806,27.15112154,107.89,107.79,11.174]
[1644530094105,24.9199,107.89,107.8,41.66506132]
[1644530094306,6.86722154,107.88,107.8,41.66506132]
[1644530095307,4.636,107.88,107.8,41.66506132]
[1644530095514,24.9199,107.89,107.8,41.66506132]
[1644530095709,24.9199,107.89,107.8,52.81506132]
[1644530097011,29.5559,107.89,107.8,52.81506132]
[1644530097209,4.636,107.89,107.8,60.45806132]
[1644530097410,4.636,107.93,107.8,60.70806132]
[1644530097610,4.636,107.93,107.81,0.024]
[1644530097809,4.636,107.93,107.82,11.15]
[1644530098012,4.636,107.93,107.83,47.83858402]
[1644530098210,4.634,107.95,107.83,58.98858402]
[1644530098411,86.31945675,107.96,107.83,58.98858402]
[1644530098412,90.95345675,107.96,107.84,0.024]
[1644530098612,2.23122154,107.95,107.84,11.174]
[1644530098810,4.634,107.94,107.85,0.024]
[1644530099114,8.61270352,107.93,107.85,46.6442464]
[1644530099309,10.84392506,107.93,107.85,46.6442464]
[1644530099511,4.634,107.92,107.85,46.6202464]
[1644530100711,4.634,107.92,107.81,0.024]
[1644530100712,27.11125548,107.91,107.81,0.024]
[1644530100913,4.635,107.9,107.8,11.174]
[1644530101316,4.635,107.9,107.8,11.424]